fUST/lending_fUST_20260116
["ID","MTS","AMOUNT","RATE_DAILY","PERIOD"]
[402182007,1768572638640,-500.0,0.00015605,2]
[402182008,1768572638650,-532.48719323,0.00015605,2]
[402182009,1768572638660,-2347.87260389,0.00015617,2]
[402182010,1768572638669,-500.0,0.00015644,2]
[402182011,1768572638679,-2434.74389024,0.00015672,2]
[402182012,1768572638688,-869.30475746,0.00015727,2]
[402182013,1768572638698,-500.0,0.00015781,2]
[402182014,1768572638707,-2284.1270694,0.0001587,2]
[402182015,1768572638716,-359.2889661,0.0001587,2]
[402182016,1768572638726,-27044.49409208,0.0001589,2]
[402182017,1768572638735,-2230.315306,0.0001589,2]
[402182018,1768572638744,-461.67526834,0.00015912,2]
[402182019,1768572638754,-500.0,0.00015918,2]
[402182020,1768572638763,-293.91007087,0.00015945,9]
[402182021,1768572638773,-391.89727276,0.00015998,2]
[402182022,1768572638782,-522.52969702,0.00015998,2]
[402182023,1768572638792,-261.26484851,0.00015998,2]
[402182024,1768572638801,-3000.0,0.00016,2]
[402182025,1768572638810,-607.43032976,0.00016,2]
[402182026,1768572638820,-5451.59322704,0.00016,2]
[402182027,1768572638829,-3000.0,0.0001601,2]
[402182028,1768572638838,-5475.693864,0.0001602,2]
[402182029,1768572638848,-500.0,0.00016055,2]
[402182030,1768572638858,-1356506.99404897,0.0001615,2]
[402182031,1768572638867,-180.19821804,0.00016171,2]
[402182032,1768572638877,-500.0,0.00016192,2]
[402182033,1768572638886,-1555.72895345,0.00016275,31]
[402182034,1768572638895,-2319.59452911,0.00016292,2]
[402182035,1768572638905,-500.0,0.00016329,2]
[402182036,1768572638915,-718.80245104,0.00016389,16]
[402182037,1768572638924,-2312.83697232,0.00016438,2]
[402182038,1768572638934,-478.75725327,0.0001646,2]
[402182039,1768572638943,-266.92718303,0.00016466,2]
[402182040,1768572638952,-402.89815899,0.00016475,2]
[402182041,1768572638962,-293.91007087,0.0001649,17]
[402182042,1768572638971,-1041.66666667,0.00016543,2]
[402182043,1768572638980,-1555.72895345,0.00016635,35]
[402182044,1768572638990,-718.80245104,0.00016687,20]
[402182045,1768572638999,-223.13477496,0.00016733,2]
[402182046,1768572639009,-467.71318156,0.00016748,2]
[402182047,1768572639019,-1329.0,0.000168,3]
[402182048,1768572639028,-160.7889057,0.00016804,20]
[402182049,1768572639038,-5835.16881564,0.00016922,2]
[402182050,1768572639047,-718.80245104,0.00016984,24]
[402182051,1768572639057,-2398.4119403,0.00016986,2]
[402182052,1768572639067,-1555.72895345,0.00016994,39]
[402182053,1768572639077,-7718.13585009,0.00016994,2]
[402182054,1768572639087,-111527.81167446,0.00017,2]
[402182055,1768572639097,-496.47127164,0.00017008,2]
[402182056,1768572639106,-140511.87845182,0.0001701,3]
[402182057,1768572639116,-293.91007087,0.00017035,25]
[402182058,1768572639126,-6834.8927077,0.00017042,2]
[402182059,1768572639136,-153.0,0.00017051,2]
[402182060,1768572639145,-655.09288929,0.00017202,2]
[402182061,1768572639155,-718.80245104,0.00017281,28]
[402182062,1768572639165,-1555.72895345,0.00017353,42]
[402182063,1768572639175,-1000.0,0.00017389,2]
[402182064,1768572639185,-500.0,0.0001739,2]
[402182065,1768572639195,-2487.15318209,0.00017534,2]
[402182066,1768572639205,-514.84070869,0.00017556,2]
[402182067,1768572639215,-718.80245104,0.00017579,31]
[402182068,1768572639225,-293.91007087,0.00017579,32]
[402182069,1768572639234,-1555.72895345,0.00017713,46]
[402182070,1768572639244,-3000.0,0.00017758,7]
[402182071,1768572639254,-13317.82,0.000178,3]
[402182072,1768572639263,-718.80245104,0.00017876,35]
[402182073,1768572639272,-228.0,0.00018048,2]
[402182074,1768572639284,-2427.29159771,0.00018064,2]
[402182075,1768572639294,-1555.72895345,0.00018072,50]
[402182076,1768572639305,-2579.17784983,0.00018082,2]
[402182077,1768572639314,-228.0,0.00018104,2]
[402182078,1768572639324,-388.79915699,0.00018104,2]
[402182079,1768572639334,-293.91007087,0.00018124,40]
[402182080,1768572639343,-718.80245104,0.00018173,39]
[402182081,1768572639353,-228.0,0.00018176,2]
[402182082,1768572639362,-582.2182268,0.00018198,2]
[402182083,1768572639372,-160.7889057,0.00018207,38]
[402182084,1768572639380,-228.0,0.00018241,2]
[402182085,1768572639390,-2472.80355642,0.00018288,2]
[402182086,1768572639399,-629.0,0.00018293,2]
[402182087,1768572639408,-1367.0,0.00018293,2]
[402182088,1768572639417,-2147.0,0.00018293,2]
[402182089,1768572639427,-160.0,0.00018374,2]
[402182090,1768572639436,-4028.46804828,0.00018383,2]
[402182091,1768572639445,-228.0,0.00018383,2]
[402182092,1768572639455,-705.909907,0.00018383,7]
[402182093,1768572639464,-454.690607,0.00018383,7]
[402182094,1768572639474,-392.394205,0.00018383,7]
[402182095,1768572639483,-653.638337,0.00018383,7]
[402182096,1768572639492,-228.0,0.00018406,2]
[402182097,1768572639502,-1555.72895345,0.00018431,54]
[402182099,1768572639511,-718.80245104,0.00018471,42]
[402182100,1768572639520,-696.756097,0.00018471,7]
[402182101,1768572639530,-449.9901516,0.00018475,2]
[402182102,1768572639539,-228.0,0.0001853,2]
[402182103,1768572639548,-168.0,0.00018584,2]
[402182104,1768572639557,-397.754288,0.00018584,7]
[402182105,1768572639567,-228.0,0.00018586,2]
[402182106,1768572639577,-2674.60743027,0.0001863,2]
[402182107,1768572639586,-1204.424557,0.00018634,7]
[402182108,1768572639595,-461.227698,0.00018634,7]
[402182109,1768572639606,-508.132828,0.00018634,7]
[402182110,1768572639615,-726.411979,0.00018634,7]
[402182111,1768572639625,-671.42800805,0.0001865,18]
[402182112,1768572639634,-5835.16881564,0.00018651,2]
[402182113,1768572639643,-293.91007087,0.00018669,48]
[402182114,1768572639653,-338.58439,0.00018669,7]
[402182115,1768572639662,-228.0,0.00018678,2]
[402182116,1768572639671,-2663.56,0.000187,3]
[402182117,1768572639681,-728.0,0.00018702,2]
[402182118,1768572639690,-274.30193,0.00018709,7]
[402182119,1768572639700,-505.16723,0.00018757,7]
[402182120,1768572639709,-718.80245104,0.00018768,46]
[402182121,1768572639719,-1555.72895345,0.00018791,57]
[402182122,1768572639728,-318.379974,0.0001884,7]
[402182123,1768572639737,-228.0,0.00018841,2]
[402182124,1768572639746,-3000.0,0.00018854,7]
[402182125,1768572639754,-303.10001603,0.000189,2]
[402182126,1768572639763,-671.42800805,0.00018917,19]
[402182127,1768572639772,-231.508752,0.00018935,7]
[402182128,1768572639781,-233.78434,0.00018935,7]
[402182129,1768572639790,-2101.515442,0.00018935,7]
[402182130,1768572639800,-500.0,0.0001895,7]
[402182132,1768572639809,-500.0,0.0001895,7]
[402182134,1768572639819,-500.0,0.0001895,7]
[402182135,1768572639829,-500.0,0.0001895,7]
[402182136,1768572639838,-500.0,0.0001895,7]
[402182137,1768572639847,-500.0,0.0001895,7]
[402182138,1768572639857,-500.0,0.0001895,7]
[402182140,1768572639867,-500.0,0.0001895,7]
[402182141,1768572639876,-500.0,0.0001895,7]
[402182143,1768572639886,-500.0,0.0001895,7]
[402182144,1768572639895,-500.0,0.0001895,7]
[402182145,1768572639905,-500.0,0.0001895,7]
[402182146,1768572639915,-500.0,0.0001895,7]
[402182147,1768572639924,-500.0,0.0001895,7]
[402182149,1768572639934,-500.0,0.0001895,7]
[402182151,1768572639943,-500.0,0.0001895,7]
[402182153,1768572639953,-500.0,0.0001895,7]
[402182155,1768572639962,-500.0,0.0001895,7]
[402182157,1768572639971,-500.0,0.0001895,7]
[402182159,1768572639980,-500.0,0.0001895,7]
[402182161,1768572639990,-500.0,0.0001895,7]
[402182163,1768572639999,-500.0,0.0001895,7]
[402182165,1768572640008,-500.0,0.0001895,7]
[402182167,1768572640018,-500.0,0.0001895,7]
[402182169,1768572640028,-500.0,0.0001895,7]
[402182171,1768572640038,-500.0,0.0001895,7]
[402182173,1768572640048,-524.16,0.0001895,7]
[402182175,1768572640057,-500.0,0.0001895,7]
[402182177,1768572640067,-59202.0,0.00019,14]
[402182180,1768572640076,-1643.64661303,0.00019,2]
[402182182,1768572640086,-173.80546886,0.00019,2]
[402182184,1768572640095,-228.0,0.00019028,2]
[402182186,1768572640105,-718.80245104,0.00019065,50]
[402182187,1768572640114,-303.10001603,0.00019089,2]
[402182188,1768572640124,-228.0,0.00019099,2]
[402182189,1768572640134,-1555.72895345,0.0001915,61]
[402182190,1768572640143,-228.0,0.00019163,2]
[402182191,1768572640152,-2773.56790519,0.00019178,2]
[402182192,1768572640162,-176.909205,0.00019178,7]
[402182193,1768572640172,-1358.68,0.00019178,2]
[402182194,1768572640182,-2399.734782,0.00019178,7]
[402182195,1768572640192,-5000.0,0.00019178,2]
[402182196,1768572640202,-2294.64125551,0.00019178,2]
[402182197,1768572640211,-671.42800805,0.00019183,20]
[402182198,1768572640221,-293.91007087,0.00019214,56]
[402182199,1768572640231,-303.10001603,0.00019278,2]
[402182200,1768572640240,-228.0,0.00019314,2]
[402182201,1768572640250,-728.0,0.00019334,2]
[402182202,1768572640261,-210.35,0.00019353,2]
[402182203,1768572640271,-718.80245104,0.00019363,54]
[402182204,1768572640282,-228.0,0.00019376,2]
[402182205,1768572640292,-228.0,0.00019428,2]
[402182206,1768572640302,-671.42800805,0.0001945,22]
[402182207,1768572640312,-303.10001603,0.00019467,2]
[402182210,1768572640323,-168.0,0.00019473,2]
[402182212,1768572640332,-1555.72895345,0.0001951,65]
[402182214,1768572640342,-263.09536091,0.00019524,2]
[402182216,1768572640353,-228.0,0.00019528,2]
[402182218,1768572640362,-228.0,0.00019533,2]
[402182221,1768572640372,-168.28,0.00019604,2]
[402182223,1768572640381,-160.7889057,0.00019611,56]
[402182225,1768572640390,-228.0,0.00019612,2]
[402182227,1768572640401,-303.10001603,0.00019656,2]
[402182229,1768572640410,-718.80245104,0.0001966,57]
[402182231,1768572640420,-2663.56,0.000197,3]
[402182233,1768572640430,-151.0,0.00019708,2]
[402182235,1768572640439,-671.42800805,0.00019717,23]
[402182237,1768572640449,-2876.18991768,0.00019726,2]
[402182239,1768572640458,-293.91007087,0.00019759,63]
[402182241,1768572640468,-728.0,0.00019816,2]
[402182243,1768572640478,-168.0,0.0001982,2]
[402182245,1768572640487,-454.65002405,0.00019845,4]
[402182247,1768572640497,-634.87372133,0.0001985,2]
[402182249,1768572640506,-916.0,0.00019868,5]
[402182251,1768572640516,-588.0,0.00019868,5]
[402182253,1768572640525,-1555.72895345,0.00019869,69]
[402182255,1768572640535,-7875.96755551,0.000199,2]
[402182257,1768572640544,-228.0,0.00019947,2]
[402182259,1768572640553,-3000.0,0.0001995,7]
[402182261,1768572640563,-500.0,0.0001995,2]
[402182263,1768572640572,-501.9572,0.0001995,2]
[402182265,1768572640582,-459.6237502,0.0001995,3]
[402182267,1768572640591,-718.80245104,0.00019957,61]
[402182269,1768572640601,-1000.0,0.0001996,5]
[402182271,1768572640610,-28416.1,0.0001998,2]
[402182273,1768572640620,-1000.0,0.0001998,5]
[402182275,1768572640629,-671.42800805,0.00019984,25]
[402182278,1768572640639,-475.0,0.00019988,2]
[402182280,1768572640649,-475.0,0.00019988,2]
[402182282,1768572640659,-475.0,0.00019988,2]
[402182284,1768572640669,-475.0,0.00019988,2]
[402182286,1768572640678,-2000.0,0.00019998,7]
[402182288,1768572640688,-900.20017902,0.0002,2]
[402182290,1768572640697,-254.04884001,0.0002,21]
[402182292,1768572640707,-2009.86651923,0.0002,2]
[402182294,1768572640717,-481.754431,0.0002,7]
[402182296,1768572640727,-1015.0,0.0002,2]
[402182298,1768572640737,-64001.23596846,0.0002,2]
[402182300,1768572640747,-3054.34,0.0002,2]
[402182302,1768572640757,-16487.04695486,0.0002,2]
[402182304,1768572640767,-9643.65609418,0.0002,3]
[402182306,1768572640777,-154.8217717,0.0002,2]
[402182308,1768572640787,-500.9,0.0002,30]
[402182310,1768572640797,-12199.0,0.0002,5]
[402182312,1768572640807,-208.52,0.0002,2]
[402182314,1768572640818,-167.99,0.0002,2]
[402182316,1768572640828,-176.42,0.0002,2]
[402182318,1768572640838,-205.37133219,0.0002,2]
[402182320,1768572640848,-82679.0,0.0002,7]
[402182322,1768572640859,-12936.92451485,0.0002,2]
[402182325,1768572640869,-18434.41,0.0002,2]
[402182327,1768572640879,-1000.0,0.0002,5]
[402182329,1768572640890,-250.0,0.0002,10]
[402182331,1768572640900,-194.2841096,0.0002,2]
[402182333,1768572640910,-304.9869532,0.0002,2]
[402182335,1768572640920,-651.4432288,0.0002,2]
[402182337,1768572640930,-381.4806479,0.0002,2]
[402182339,1768572640940,-304.9869532,0.0002,2]
[402182341,1768572640951,-468.9467516,0.0002,2]
[402182343,1768572640962,-194.2841096,0.0002,2]
[402182345,1768572640972,-304.9869532,0.0002,2]
[402182347,1768572640982,-304.9869532,0.0002,2]
[402182349,1768572640994,-304.9869532,0.0002,2]
[402182351,1768572641004,-303.10001583,0.00020034,4]
[402182353,1768572641014,-346.4976631,0.00020055,3]
[402182356,1768572641024,-250.0,0.000201,10]
[402182358,1768572641034,-250.0,0.000202,10]
[402182360,1768572641044,-228.0,0.00020204,2]
[402182362,1768572641054,-228.20144067,0.00020219,30]
[402182364,1768572641064,-1555.72895345,0.00020228,72]
[402182366,1768572641073,-168.0,0.00020238,2]
[402182368,1768572641083,-671.42800805,0.00020251,26]
[402182370,1768572641093,-718.80245104,0.00020254,65]
[402182372,1768572641104,-2982.60894464,0.00020274,2]
[402182374,1768572641114,-250.0,0.000203,10]
[402182376,1768572641124,-293.91007087,0.00020304,71]
[402182378,1768572641134,-151.0,0.00020351,2]
[402182380,1768572641144,-5835.16881564,0.0002038,2]
[402182382,1768572641154,-250.0,0.000204,10]
[402182384,1768572641163,-497.0821442,0.00020475,2]
[402182385,1768572641173,-2000.0,0.00020499,7]
[402182386,1768572641182,-250.0,0.000205,10]
[402182387,1768572641192,-671.42800805,0.00020518,27]
[402182388,1768572641202,-718.80245104,0.00020552,69]
[402182390,1768572641212,-1555.72895345,0.00020588,76]
[402182391,1768572641222,-250.0,0.000206,10]
[402182392,1768572641232,-250.0,0.000207,10]
[402182393,1768572641244,-5000.0,0.00020752,2]
[402182394,1768572641254,-671.42800805,0.00020785,29]
[402182395,1768572641264,-250.0,0.000208,10]
[402182396,1768572641274,-3092.96547559,0.00020822,2]
[402182397,1768572641288,-293.91007087,0.00020848,79]
[402182398,1768572641298,-718.80245104,0.00020849,72]
[402182399,1768572641308,-3054.34,0.000209,2]
[402182400,1768572641320,-250.0,0.000209,10]
[402182401,1768572641333,-160.0,0.00020936,3]
[402182402,1768572641354,-1555.72895345,0.00020947,80]
[402182403,1768572641372,-151.0,0.00020993,2]
[402182404,1768572641383,-2000.0,0.00020999,7]
[402182405,1768572641394,-1687.64,0.00021,15]
[402182406,1768572641406,-456.0,0.00021,2]
[402182407,1768572641417,-376.63,0.00021,7]
[402182408,1768572641427,-208.52,0.00021,2]
[402182409,1768572641438,-176.42,0.00021,2]
[402182410,1768572641448,-2000.0,0.00021,7]
[402182411,1768572641459,-481.57939059,0.00021,10]
[402182412,1768572641470,-3000.0,0.00021,2]
[402182413,1768572641479,-250.0,0.00021,10]
[402182414,1768572641490,-3000.0,0.0002101,2]
[402182415,1768572641500,-160.7889057,0.00021015,74]
[402182416,1768572641511,-3000.0,0.0002102,2]
[402182417,1768572641521,-3000.0,0.0002103,2]
[402182418,1768572641532,-3000.0,0.0002104,2]
[402182419,1768572641542,-3000.0,0.00021046,7]
[402182420,1768572641558,-3000.0,0.0002105,2]
[402182421,1768572641579,-671.42800805,0.00021052,30]
[402182422,1768572641598,-3000.0,0.0002106,2]
[402182423,1768572641608,-3000.0,0.0002107,2]
[402182424,1768572641619,-3000.0,0.0002108,2]
[402182425,1768572641630,-3000.0,0.0002109,2]
[402182426,1768572641641,-18434.41,0.000211,2]
[402182427,1768572641653,-3000.0,0.000211,2]
[402182428,1768572641665,-250.0,0.000211,10]
[402182429,1768572641675,-3000.0,0.0002111,2]
[402182430,1768572641686,-3000.0,0.0002112,2]
[402182431,1768572641696,-3000.0,0.0002113,2]
[402182432,1768572641707,-3000.0,0.0002114,2]
[402182433,1768572641720,-294.129128,0.0002114,7]
[402182434,1768572641731,-189.454419,0.0002114,7]
[402182435,1768572641740,-163.497585,0.0002114,7]
[402182436,1768572641752,-272.349307,0.0002114,7]
[402182437,1768572641762,-718.80245104,0.00021146,76]
[402182438,1768572641773,-3000.0,0.0002115,2]
[402182439,1768572641786,-195.0,0.00021151,4]
[402182440,1768572641797,-3000.0,0.0002116,2]
[402182441,1768572641808,-3000.0,0.0002117,2]
[402182442,1768572641819,-3000.0,0.0002118,2]
[402182443,1768572641830,-3000.0,0.0002119,2]
[402182444,1768572641842,-3000.0,0.000212,2]
[402182445,1768572641857,-3000.0,0.0002121,2]
[402182446,1768572641869,-3000.0,0.0002122,2]
[402182447,1768572641881,-3000.0,0.0002123,2]
[402182448,1768572641893,-7875.96755551,0.00021233,2]
[402182449,1768572641905,-3000.0,0.0002124,2]
[402182450,1768572641915,-3000.0,0.0002125,2]
[402182451,1768572641927,-3000.0,0.0002126,2]
[402182452,1768572641938,-3000.0,0.0002127,2]
[402182453,1768572641948,-3000.0,0.0002128,2]
[402182454,1768572641958,-3000.0,0.0002129,2]
[402182455,1768572641968,-629.0,0.00021293,2]
[402182456,1768572641978,-1367.0,0.00021293,2]
[402182457,1768572641988,-2147.0,0.00021293,2]
[402182458,1768572641999,-3000.0,0.000213,2]
[402182459,1768572642011,-1555.72895345,0.00021307,83]
[402182460,1768572642022,-3000.0,0.0002131,2]
[402182461,1768572642033,-671.42800805,0.00021318,30]
[402182462,1768572642043,-3000.0,0.0002132,2]
[402182463,1768572642054,-3000.0,0.0002133,2]
[402182464,1768572642064,-3000.0,0.0002134,2]
[402182465,1768572642074,-3000.0,0.0002135,2]
[402182466,1768572642084,-3000.0,0.0002136,2]
[402182467,1768572642095,-3207.40519818,0.0002137,2]
[402182468,1768572642104,-3000.0,0.0002137,2]
[402182469,1768572642115,-3000.0,0.0002138,2]
[402182470,1768572642125,-3000.0,0.0002139,2]
[402182471,1768572642135,-293.91007087,0.00021393,86]
[402182472,1768572642145,-3000.0,0.000214,2]
[402182473,1768572642155,-3000.0,0.0002141,2]
[402182474,1768572642164,-3000.0,0.0002142,2]
[402182475,1768572642177,-4771.482473,0.0002143,2]
[402182476,1768572642198,-718.80245104,0.00021444,80]
[402182477,1768572642218,-2000.0,0.00021499,7]
[402182478,1768572642228,-671.42800805,0.00021585,30]
[402182479,1768572642238,-1000.0,0.00021633,10]
[402182480,1768572642476,-791.0,0.00021633,10]
[402182481,1768572642496,-151.0,0.00021635,2]
[402182482,1768572642506,-1555.72895345,0.00021666,87]
[402182483,1768572642515,-10000.0,0.000217,2]
[402182484,1768572642524,-718.80245104,0.00021741,83]
[402182485,1768572642533,-3054.34,0.000218,2]
[402182486,1768572642542,-671.42800805,0.00021852,30]
[402182487,1768572642551,-3326.07919052,0.00021918,2]
[402182488,1768572642560,-151.0,0.00021918,2]
[402182489,1768572642569,-151.0,0.00021918,2]
[402182490,1768572642579,-295.412234,0.00021918,2]
[402182491,1768572642588,-231.606192,0.00021918,2]
[402182492,1768572642598,-151.0,0.00021918,2]
[402182493,1768572642607,-189.511198,0.00021918,2]
[402182494,1768572642617,-151.0,0.00021918,2]
[402182495,1768572642627,-151.0,0.00021918,2]
[402182496,1768572642637,-475.393017,0.00021918,2]
[402182497,1768572642646,-475.393017,0.00021918,2]
[402182498,1768572642656,-475.393017,0.00021918,2]
[402182499,1768572642666,-151.0,0.00021918,2]
[402182500,1768572642675,-475.393017,0.00021918,2]
[402182501,1768572642685,-185.289111,0.00021918,2]
[402182502,1768572642694,-185.289111,0.00021918,2]
[402182503,1768572642704,-185.289111,0.00021918,2]
[402182504,1768572642714,-151.202302,0.00021918,2]
[402182505,1768572642723,-185.289111,0.00021918,2]
[402182506,1768572642733,-151.0,0.00021918,2]
[402182507,1768572642743,-151.0,0.00021918,2]
[402182508,1768572642752,-151.0,0.00021918,2]
[402182509,1768572642762,-151.0,0.00021918,2]
[402182510,1768572642771,-500.0,0.00021918,5]
[402182511,1768572642781,-269.92578944,0.00021918,7]
[402182512,1768572642790,-293.91007087,0.00021938,94]
[402182513,1768572642799,-1511.7275,0.00021948,14]
[402182514,1768572642808,-200.0,0.00021964,30]
[402182515,1768572642818,-200.0,0.00021964,30]
[402182516,1768572642827,-200.0,0.00021964,30]
[402182517,1768572642837,-2000.0,0.00021999,7]
[402182518,1768572642846,-997.0,0.00022,3]
[402182519,1768572642856,-30022.51661447,0.00022,2]
[402182520,1768572642864,-583.66664759,0.00022,20]
[402182521,1768572642874,-176.42,0.00022,7]
[402182522,1768572642883,-5000.0,0.00022,2]
[402182523,1768572642892,-151.166975,0.00022,2]
[402182524,1768572642901,-151.0,0.00022,2]
[402182525,1768572642911,-151.0,0.00022,2]
[402182526,1768572642920,-397.116198,0.00022,2]
[402182527,1768572642930,-397.116198,0.00022,2]
[402182528,1768572642939,-397.116198,0.00022,2]
[402182529,1768572642948,-397.116198,0.00022,2]
[402182530,1768572642957,-428.653115,0.00022,2]
[402182531,1768572642966,-428.653115,0.00022,2]
[402182532,1768572642975,-428.653115,0.00022,2]
[402182533,1768572642984,-428.653115,0.00022,2]
[402182534,1768572642993,-650.330857,0.00022,2]
[402182535,1768572643002,-650.330857,0.00022,2]
[402182536,1768572643011,-650.330857,0.00022,2]
[402182537,1768572643020,-657.268275,0.00022,2]
[402182538,1768572643029,-657.268275,0.00022,2]
[402182539,1768572643039,-657.268275,0.00022,2]
[402182540,1768572643049,-657.268275,0.00022,2]
[402182541,1768572643058,-227.807355,0.00022,2]
[402182542,1768572643068,-151.0,0.00022,2]
[402182543,1768572643078,-151.0,0.00022,2]
[402182544,1768572643087,-151.0,0.00022,2]
[402182545,1768572643097,-151.0,0.00022,2]
[402182546,1768572643107,-151.0,0.00022,2]
[402182547,1768572643116,-151.0,0.00022,2]
[402182548,1768572643126,-151.0,0.00022,2]
[402182549,1768572643135,-196.28799364,0.00022,2]
[402182550,1768572643144,-151.0,0.00022,2]
[402182551,1768572643153,-151.0,0.00022,2]
[402182552,1768572643162,-151.0,0.00022,2]
[402182553,1768572643171,-1665.057083,0.00022,2]
[402182554,1768572643179,-231.652552,0.00022,2]
[402182555,1768572643188,-1665.057083,0.00022,2]
[402182556,1768572643198,-1665.057083,0.00022,2]
[402182557,1768572643207,-1665.057083,0.00022,2]
[402182558,1768572643216,-151.0,0.00022,2]
[402182559,1768572643225,-151.0,0.00022,2]
[402182560,1768572643234,-151.0,0.00022,2]
[402182561,1768572643244,-1077.62458,0.00022,2]
[402182562,1768572643253,-313.454305,0.00022,2]
[402182563,1768572643263,-241.504168,0.00022,2]
[402182564,1768572643272,-1077.62458,0.00022,2]
[402182565,1768572643285,-313.454305,0.00022,2]
[402182566,1768572643294,-1077.62458,0.00022,2]
[402182567,1768572643303,-313.454305,0.00022,2]
[402182568,1768572643313,-1077.62458,0.00022,2]
[402182569,1768572643324,-313.454305,0.00022,2]
[402182570,1768572643333,-1555.72895345,0.00022025,91]
[402182571,1768572643343,-718.80245104,0.00022038,87]
[402182572,1768572643353,-500.0,0.000221,7]
[402182573,1768572643363,-208.52,0.000221,7]
[402182574,1768572643372,-18434.41,0.000221,2]
[402182575,1768572643382,-151.0,0.000221,2]
[402182576,1768572643393,-151.0,0.000221,2]
[402182577,1768572643402,-151.0,0.000221,2]
[402182578,1768572643412,-175.891206,0.000221,2]
[402182579,1768572643423,-151.0,0.000221,2]
[402182580,1768572643433,-151.0,0.000221,2]
[402182581,1768572643443,-151.0,0.000221,2]
[402182582,1768572643453,-151.0,0.000221,2]
[402182583,1768572643462,-153.395318,0.000221,2]
[402182584,1768572643472,-616.514048,0.000221,2]
[402182585,1768572643482,-616.514048,0.000221,2]
[402182586,1768572643492,-616.514048,0.000221,2]
[402182587,1768572643502,-616.514048,0.000221,2]
[402182588,1768572643511,-151.0,0.000221,2]
[402182589,1768572643521,-151.0,0.000221,2]
[402182590,1768572643531,-154.884541,0.000221,2]
[402182591,1768572643540,-151.0,0.000221,2]
[402182592,1768572643550,-196.036808,0.000221,2]
[402182593,1768572643561,-196.036808,0.000221,2]
[402182594,1768572643571,-196.036808,0.000221,2]
[402182595,1768572643580,-196.036808,0.000221,2]
[402182596,1768572643591,-151.0,0.000221,2]
[402182597,1768572643601,-151.0,0.000221,2]
[402182598,1768572643611,-179.431726,0.000221,2]
[402182599,1768572643621,-179.431726,0.000221,2]
[402182600,1768572643632,-179.431726,0.000221,2]
[402182601,1768572643642,-151.0,0.000221,2]
[402182602,1768572643652,-179.431726,0.000221,2]
[402182603,1768572643662,-164.316659,0.000221,2]
[402182604,1768572643672,-151.0,0.000221,2]
[402182605,1768572643682,-160.699575,0.000221,2]
[402182606,1768572643692,-151.0,0.000221,2]
[402182607,1768572643702,-151.0,0.000221,2]
[402182608,1768572643713,-151.0,0.000221,2]
[402182609,1768572643723,-192.959608,0.000221,2]
[402182610,1768572643733,-172.708176,0.000221,2]
[402182611,1768572643743,-203.110444,0.000221,2]
[402182612,1768572643753,-203.110444,0.000221,2]
[402182613,1768572643764,-203.110444,0.000221,2]
[402182614,1768572643774,-203.110444,0.000221,2]
[402182615,1768572643784,-238.761478,0.000221,2]
[402182616,1768572643795,-238.761478,0.000221,2]
[402182617,1768572643804,-238.761478,0.000221,2]
[402182618,1768572643813,-238.761478,0.000221,2]
[402182619,1768572643823,-151.0,0.000221,2]
[402182620,1768572643833,-151.0,0.000221,2]
[402182621,1768572643843,-151.0,0.000221,2]
[402182622,1768572643853,-151.0,0.000221,2]
[402182623,1768572643863,-151.0,0.000221,2]